bitfinex/quotes_SOLUSD_20241102
["timestamp","ask_amount","ask_price","bid_price","bid_amount"]
[1730508811631,11.50477198,167.08,167.03,5.51957198]
[1730508811832,5.9852,167.08,167.03,5.51957198]
[1730508812723,5.9852,167.08,167.03,11.50617198]
[1730508813407,91.50017198,167.09,167.03,11.50617198]
[1730508813607,20.0,167.08,167.03,26.47347198]
[1730508814539,25.51957198,167.08,167.03,26.47347198]
[1730508815537,20.0,167.08,167.03,26.47347198]
[1730508815716,81.50447198,167.09,167.04,5.51957198]
[1730508815911,70.0,167.09,167.05,5.51957198]
[1730508817538,70.0,167.09,167.05,11.50557198]
[1730508818726,70.0,167.09,167.05,5.986]
[1730508821118,70.0,167.09,167.05,11.50557198]
[1730508826947,81.50447198,167.09,167.03,26.47367198]
[1730508828248,20.0,167.1,167.06,5.51957198]
[1730508828427,70.0,167.11,167.06,5.51957198]
[1730508829148,75.9843,167.11,167.06,11.50517198]
[1730508830425,20.0,167.11,167.07,5.51957198]
[1730508830728,97.08937198,167.13,167.08,5.51957198]
[1730508831331,97.08937198,167.13,167.08,11.50447198]
[1730508831941,97.08937198,167.13,167.08,26.46727198]
[1730508833534,5.9831,167.14,167.1,5.51957198]
[1730508834648,5.9831,167.14,167.1,11.50377198]
[1730508834838,11.50267198,167.14,167.1,5.9842]
[1730508836647,5.51957198,167.14,167.1,20.9453]
[1730508837340,20.0,167.16,167.11,5.51957198]
[1730508837541,91.39277198,167.17,167.11,5.51957198]
[1730508838135,5.51957198,167.16,167.11,5.51957198]
[1730508838537,11.50187198,167.16,167.11,5.9838]
[1730508841840,5.51957198,167.16,167.11,5.9838]
[1730508842036,11.50187198,167.16,167.11,20.944]
[1730508846859,70.0,167.14,167.09,11.50407198]
[1730508847052,75.51957198,167.14,167.09,11.50407198]
[1730508847356,75.51957198,167.14,167.09,5.9845]
[1730508847943,81.50277198,167.14,167.09,5.9845]
[1730508848943,81.50277198,167.14,167.09,5.51957198]
[1730508851861,75.9832,167.14,167.09,11.50407198]
[1730508852266,75.9832,167.14,167.1,5.51957198]
[1730508856862,75.9832,167.14,167.1,11.50387198]
[1730508863549,15.8732,167.17,167.11,5.51957198]
[1730508863550,91.39277198,167.17,167.11,5.51957198]
[1730508863756,97.37467198,167.17,167.11,5.51957198]
[1730508864864,97.37467198,167.17,167.12,5.9837]
[1730508866570,91.8551,167.17,167.12,5.51957198]
[1730508867272,97.37467198,167.17,167.11,5.51957198]
[1730508867848,97.37467198,167.17,167.12,5.9837]
[1730508870969,97.37467198,167.17,167.12,20.943]
[1730508877659,5.51957198,167.16,167.1,5.51957198]
[1730508879061,70.0,167.15,167.1,5.51957198]
[1730508879869,75.9828,167.15,167.1,11.50367198]
[1730508881979,75.9828,167.15,167.1,26.46477198]
[1730508883471,81.50237198,167.15,167.09,5.51957198]
[1730508884581,81.50237198,167.15,167.1,20.9455]
[1730508886266,81.50237198,167.15,167.1,5.51957198]
[1730508886961,75.9828,167.15,167.1,5.51957198]
[1730508887973,75.9828,167.15,167.11,5.984]
[1730508895492,75.9828,167.15,167.06,6.22157591]
[1730508895493,81.50237198,167.15,167.09,5.51957198]
[1730508896067,75.9828,167.15,167.1,5.51957198]
[1730508896591,75.9828,167.15,167.11,5.984]
[1730508897188,75.51957198,167.13,167.07,20.9489]
[1730508897372,5.51957198,167.11,167.07,20.9489]
[1730508898087,5.51957198,167.1,167.05,5.9861]
[1730508898265,5.51957198,167.08,167.05,5.9861]
[1730508898671,5.51957198,167.08,167.04,20.9524]
[1730508898870,5.51957198,167.09,167.04,26.47197198]
[1730508900498,5.51957198,167.08,167.04,20.9524]
[1730508902290,81.50447198,167.09,167.04,26.47197198]
[1730508905797,75.9849,167.09,167.04,26.47197198]
[1730508905967,75.9849,167.09,167.05,5.51957198]
[1730508906695,75.9849,167.09,167.04,20.48547198]
[1730508907197,75.9849,167.09,167.04,26.47197198]
[1730508919385,70.0,167.12,167.07,5.51957198]
[1730508919699,70.0,167.12,167.04,20.9524]
[1730508919700,5.51957198,167.13,167.08,5.51957198]
[1730508920198,11.50297198,167.13,167.08,5.51957198]
[1730508920991,70.0,167.14,167.08,5.51957198]
[1730508920992,81.50267198,167.14,167.08,5.51957198]
[1730508921301,5.51957198,167.14,167.09,5.51957198]
[1730508921487,11.50217198,167.15,167.1,5.51957198]
[1730508922693,11.50217198,167.15,167.1,11.50387198]
[1730508925500,5.51957198,167.14,167.09,5.51957198]
[1730508925705,75.51957198,167.14,167.09,5.51957198]
[1730508926005,5.51957198,167.11,167.06,26.46997198]
[1730508926687,75.51957198,167.12,167.07,5.51957198]
[1730508927005,81.50327198,167.12,167.07,11.50467198]
[1730508929713,81.50327198,167.12,167.07,26.46837198]
[1730508930206,81.50267198,167.14,167.09,5.51957198]
[1730508930388,5.51957198,167.13,167.08,5.51957198]
[1730508931293,81.50257198,167.14,167.09,5.51957198]
[1730508931496,75.51957198,167.14,167.09,5.51957198]
[1730508932107,5.51957198,167.14,167.05,50.8828]
[1730508932313,5.9827,167.15,167.05,50.8828]
[1730508932314,11.50227198,167.15,167.1,5.51957198]
[1730508932993,81.50187198,167.16,167.11,5.51957198]
[1730508933405,81.50187198,167.16,167.11,11.50337198]
[1730508933783,75.51957198,167.16,167.11,26.46357198]
[1730508935588,81.50187198,167.16,167.11,26.46357198]
[1730508946717,75.9823,167.16,167.12,5.51957198]
[1730508946918,81.50187198,167.16,167.11,5.51957198]
[1730508948521,81.50187198,167.16,167.11,11.50357198]
[1730508949123,81.50187198,167.16,167.11,5.984]
[1730508949996,81.50187198,167.16,167.1,5.51957198]
[1730508950201,5.51957198,167.15,167.1,11.50387198]
[1730508950720,5.51957198,167.15,167.08,14.9628]
[1730508950721,75.51957198,167.14,167.09,11.50427198]
[1730508951912,5.9833,167.13,167.09,11.50427198]
[1730508952105,11.50287198,167.13,167.08,14.9628]
[1730508952299,75.51957198,167.12,167.08,14.9628]
[1730508952723,75.51957198,167.12,167.07,11.50477198]
[1730508953029,70.0,167.1,167.06,5.51957198]
[1730508953528,75.51957198,167.1,167.05,26.47037198]
[1730508954106,5.9847,167.09,167.05,26.47037198]
[1730508954998,5.9847,167.09,167.05,20.9508]
[1730508955199,11.50427198,167.09,167.04,5.51957198]
[1730508956109,11.50427198,167.09,167.04,11.50597198]
[1730508957113,11.50427198,167.09,167.04,5.9864]
[1730508958226,70.0,167.08,167.03,11.50637198]
[1730508958424,75.51957198,167.08,167.03,11.50637198]
[1730508959134,75.51957198,167.08,167.03,26.47367198]
[1730508960231,70.0,167.08,167.04,5.51957198]
[1730508962538,75.51957198,167.08,167.04,5.9864]
[1730508964031,70.0,167.13,167.07,5.51957198]
[1730508964331,70.0,167.13,167.09,5.51957198]
[1730508964545,70.0,167.13,167.08,5.51957198]
[1730508964731,75.51957198,167.13,167.09,5.9847]
[1730508964921,81.50297198,167.13,167.09,5.9847]
[1730508965122,81.50297198,167.13,167.08,20.9477]
[1730508965319,5.51957198,167.12,167.08,20.9477]
[1730508968435,5.51957198,167.12,167.08,14.9627]
[1730508969842,11.50327198,167.12,167.08,14.9627]
[1730508971337,70.0,167.11,167.08,14.9627]
[1730508975842,75.51957198,167.11,167.08,14.9627]
[1730508976349,81.50357198,167.11,167.07,5.9854]
[1730508978249,70.0,167.11,167.07,5.51957198]
[1730508980030,70.0,167.11,167.07,11.50487198]
[1730508983767,70.0,167.09,167.06,5.9858]
[1730508985335,81.50377198,167.11,167.06,26.46997198]
[1730508986234,75.9842,167.11,167.07,5.51957198]
[1730508986457,75.9842,167.11,167.07,11.50477198]
[1730508987140,70.0,167.11,167.07,11.50477198]
[1730508987347,81.50317198,167.13,167.08,5.51957198]
[1730508987757,75.9836,167.13,167.08,5.51957198]
[1730508987966,70.0,167.13,167.08,5.51957198]
[1730508988541,70.0,167.13,167.09,5.9847]
[1730508990757,75.51957198,167.13,167.09,5.9847]
[1730508990961,81.50287198,167.13,167.09,5.9847]
[1730508991467,5.51957198,167.12,167.09,5.9847]
[1730508992160,5.51957198,167.12,167.08,5.9851]
[1730508993150,5.51957198,167.12,167.08,20.9479]
[1730508994455,81.50287198,167.13,167.08,20.9479]
[1730508997862,75.51957198,167.13,167.08,20.9479]
[1730508999061,75.51957198,167.13,167.08,26.46747198]
[1730508999360,5.51957198,167.12,167.08,20.9479]
[1730508999565,5.51957198,167.12,167.08,14.9628]
[1730509005268,5.51957198,167.11,167.08,14.9628]
[1730509007487,75.51957198,167.1,167.05,5.51957198]
[1730509007768,5.51957198,167.09,167.05,14.9655]
[1730509009653,75.51957198,167.08,167.05,14.9655]
[1730509009889,5.51957198,167.06,167.02,14.9677]
[1730509010246,70.0,167.03,166.99,26.47847198]
[1730509010553,75.51957198,167.03,166.99,20.9589]
[1730509010757,70.0,167.03,166.99,26.47847198]
[1730509012662,75.51957198,167.03,166.99,20.9589]
[1730509015302,75.51957198,167.01,166.96,20.49267198]
[1730509015468,5.51957198,167.0,166.96,14.9731]
[1730509016659,5.51957198,167.0,166.96,20.9625]
[1730509018183,5.51957198,166.99,166.96,20.9625]
[1730509018569,5.51957198,167.0,166.96,20.9625]
[1730509027903,81.50727198,167.01,166.96,20.49267198]
[1730509028385,70.0,167.01,166.97,5.51957198]
[1730509028775,70.0,167.01,166.98,5.51957198]
[1730509028977,75.51957198,167.03,166.98,5.51957198]
[1730509029190,70.0,167.03,166.98,5.51957198]
[1730509029707,75.51957198,167.03,166.98,5.51957198]
[1730509030073,81.50657198,167.03,166.98,11.50797198]
[1730509030898,81.50657198,167.03,166.98,26.47977198]
[1730509032389,5.51957198,167.02,166.97,5.51957198]
[1730509033389,5.51957198,167.01,166.96,5.51957198]
[1730509033891,5.51957198,167.01,166.97,20.9617]
[1730509034093,5.51957198,167.02,166.97,26.48127198]
[1730509034505,81.50657198,167.03,166.98,5.51957198]
[1730509034801,5.51957198,167.02,166.97,20.49227198]
[1730509035007,5.51957198,167.02,166.98,5.9885]
[1730509036888,81.50657198,167.03,166.98,11.50807198]
[1730509037703,5.51957198,167.02,166.98,5.9885]
[1730509038602,5.51957198,167.01,166.98,5.9885]
[1730509039585,5.51957198,167.01,166.97,20.9617]
[1730509039986,5.51957198,167.02,166.97,26.48127198]
[1730509041205,11.50687198,167.02,166.97,26.48127198]
[1730509043092,5.9873,167.02,166.97,26.48127198]
[1730509043610,11.50637198,167.04,166.99,5.51957198]
[1730509043804,70.0,167.05,167.01,5.51957198]
[1730509044106,81.50587198,167.05,166.99,5.51957198]
[1730509045090,75.51957198,167.05,167.0,5.988]
[1730509045288,75.51957198,167.05,167.0,11.50757198]
[1730509045601,75.51957198,167.05,167.0,26.47757198]
[1730509047406,70.0,167.05,167.01,5.51957198]
[1730509047813,11.50567198,167.06,167.01,5.51957198]
[1730509049210,11.50567198,167.06,167.01,11.50717198]
[1730509049392,70.0,167.05,167.01,11.50717198]
[1730509049717,70.0,167.05,167.01,5.9876]
[1730509053402,75.51957198,167.05,167.01,5.9876]
[1730509054613,81.50577198,167.05,167.01,5.9876]
[1730509054996,75.9862,167.05,167.01,5.9876]
[1730509056210,5.9862,167.05,167.01,5.9876]
[1730509057300,75.9862,167.05,167.01,5.9876]
[1730509057502,81.50577198,167.05,167.01,5.9876]
[1730509060817,86.4718,167.12,167.04,5.51957198]
[1730509060991,70.0,167.12,167.07,5.51957198]
[1730509061499,75.51957198,167.12,167.06,5.51957198]
[1730509063210,75.51957198,167.12,167.07,5.51957198]
[1730509065320,70.0,167.12,167.08,5.9851]
[1730509065716,5.9836,167.13,167.08,11.50467198]
[1730509067632,70.0,167.14,167.1,5.51957198]
[1730509069328,70.0,167.14,167.1,11.50367198]
[1730509071230,70.0,167.14,167.1,26.46477198]
[1730509077818,75.983,167.14,167.1,26.46477198]
[1730509079318,70.0,167.14,167.1,26.46477198]
[1730509081431,75.51957198,167.14,167.1,20.9452]
[1730509083235,75.51957198,167.14,167.08,11.50457198]
[1730509083236,70.0,167.12,167.08,11.50457198]
[1730509083537,75.51957198,167.12,167.08,5.985]
[1730509086242,70.0,167.12,167.08,11.50457198]
[1730509086421,81.50327198,167.12,167.08,5.985]
[1730509087640,75.9837,167.12,167.08,5.51957198]
[1730509088058,70.0,167.12,167.08,5.51957198]
[1730509089465,70.0,167.12,167.08,11.50437198]
[1730509092276,81.50327198,167.12,167.08,5.9848]
[1730509093165,75.9837,167.12,167.08,11.50437198]
[1730509093458,70.0,167.12,167.08,11.50437198]
[1730509093638,70.0,167.12,167.08,26.46717198]
[1730509098160,81.50347198,167.12,167.08,14.9628]
[1730509098667,70.0,167.1,167.06,11.50527198]
[1730509101242,70.0,167.1,167.07,5.51957198]
[1730509102769,70.0,167.1,167.07,11.50497198]
[1730509106364,70.0,167.1,167.06,5.51957198]
[1730509106550,70.0,167.1,167.07,5.51957198]
[1730509113363,70.0,167.1,167.06,5.9856]
[1730509113364,70.0,167.1,167.06,11.50517198]
[1730509113776,70.0,167.1,167.07,5.51957198]
[1730509115367,75.51957198,167.13,167.07,5.51957198]
[1730509115565,75.9836,167.13,167.08,5.51957198]
[1730509115874,75.9836,167.13,167.09,5.51957198]
[1730509117072,75.9836,167.13,167.09,11.50427198]
[1730509117073,70.0,167.13,167.09,11.50427198]
[1730509117261,75.9835,167.13,167.09,11.50427198]
[1730509117858,75.9835,167.13,167.09,5.9847]
[1730509120154,70.0,167.13,167.09,20.9466]
[1730509120463,75.9833,167.13,167.09,14.9619]
[1730509122671,81.50287198,167.13,167.09,14.9619]
[1730509122879,70.0,167.11,167.07,11.50497198]
[1730509123374,70.0,167.11,167.07,26.46867198]
[1730509126166,70.0,167.11,167.08,5.51957198]
[1730509128584,70.0,167.11,167.08,11.50457198]
[1730509136399,70.0,167.11,167.08,26.46737198]
[1730509140098,75.9834,167.13,167.09,5.51957198]
[1730509142392,70.0,167.11,167.08,26.46737198]
[1730509144589,75.9842,167.11,167.08,14.9628]
[1730509147289,75.9842,167.11,167.08,5.51957198]
[1730509148100,70.0,167.11,167.08,5.51957198]
[1730509148807,70.0,167.11,167.07,5.51957198]
[1730509148991,75.9841,167.11,167.07,5.51957198]
[1730509149191,70.0,167.11,167.09,5.51957198]
[1730509149982,70.0,167.11,167.08,5.51957198]
[1730509154296,70.0,167.11,167.08,11.50467198]
[1730509156809,70.0,167.11,167.07,5.51957198]
[1730509158132,70.0,167.11,167.08,5.9851]
[1730509162413,70.0,167.09,167.06,11.50527198]
[1730509163519,70.0,167.09,167.06,26.46987198]
[1730509167197,70.0,167.09,167.06,20.9503]
[1730509169000,70.0,167.09,167.06,5.51957198]
[1730509170213,70.0,167.07,167.04,20.48517198]
[1730509172717,70.0,167.05,167.02,11.50687198]
[1730509173107,70.0,167.05,167.01,26.47597198]
[1730509173501,70.0,167.05,167.02,5.51957198]
[1730509174525,70.0,167.05,167.02,11.50677198]
[1730509179028,70.0,167.05,167.02,5.51957198]
[1730509179329,70.0,167.05,167.01,26.47587198]
[1730509182131,70.0,167.05,167.01,20.48837198]
[1730509182317,75.9864,167.05,167.01,26.47597198]
[1730509184844,70.0,167.03,167.01,20.48837198]
[1730509185929,70.0,167.03,167.01,5.51957198]
[1730509187042,70.0,167.03,167.0,5.51957198]
[1730509187224,75.987,167.03,166.99,5.51957198]
[1730509187741,70.0,167.01,166.99,5.51957198]
[1730509187929,70.0,167.01,166.98,20.49127198]
[1730509190046,70.0,167.01,166.99,5.51957198]
[1730509195853,70.0,167.01,166.97,5.51957198]
[1730509196455,70.0,167.01,166.99,5.51957198]
[1730509196647,70.0,167.01,166.98,5.51957198]
[1730509198354,75.987,167.03,166.99,11.50787198]
[1730509200343,70.0,167.03,166.99,11.50787198]
[1730509200550,70.0,167.03,167.01,5.51957198]
[1730509201551,75.9863,167.05,167.01,5.51957198]
[1730509202955,70.0,167.03,167.01,5.51957198]
[1730509204046,70.0,167.07,167.02,5.51957198]
[1730509204245,70.0,167.07,167.04,5.51957198]
[1730509205364,75.9855,167.07,167.03,5.51957198]
[1730509206267,75.9855,167.07,167.04,5.51957198]
[1730509211769,75.9855,167.07,167.03,5.51957198]
[1730509214664,75.9855,167.07,167.03,11.50637198]
[1730509216366,70.0,167.03,166.98,20.49097198]
[1730509216572,75.51957198,167.03,166.98,20.49097198]
[1730509217359,75.987,167.03,166.98,26.47967198]
[1730509217870,70.0,167.01,166.98,26.47967198]
[1730509218772,70.0,167.04,167.0,5.51957198]
[1730509218948,70.0,167.04,167.02,5.51957198]
[1730509219750,70.0,167.06,167.03,5.51957198]
[1730509220060,5.51957198,167.08,167.02,5.9871]
[1730509220061,70.0,167.08,167.05,5.51957198]
[1730509220247,75.9845,167.1,167.06,5.51957198]
[1730509220454,70.0,167.1,167.06,5.51957198]
[1730509221070,75.9845,167.1,167.06,5.51957198]
[1730509221455,81.50407198,167.1,167.05,5.51957198]
[1730509221871,81.50407198,167.1,167.05,11.50557198]
[1730509222267,23.776884,167.09,167.05,11.50557198]
[1730509224460,70.0,167.08,167.05,5.986]
[1730509224656,70.0,167.08,167.04,26.47207198]
[1730509224977,23.776884,167.07,167.04,20.48557198]
[1730509227470,23.776884,167.07,167.05,5.51957198]
[1730509231289,23.776884,167.07,167.04,5.51957198]
[1730509233682,23.776884,167.07,167.03,11.50617198]
[1730509234773,23.776884,167.07,167.03,20.48687198]
[1730509236169,23.776884,167.07,167.03,26.47377198]
[1730509239166,23.776884,167.05,167.01,5.51957198]
[1730509240181,23.776884,167.05,167.01,11.50687198]
[1730509240580,23.776884,167.05,167.02,5.51957198]
[1730509242477,23.776884,167.05,167.01,26.47597198]
[1730509243795,23.776884,167.05,167.02,5.51957198]
[1730509245690,23.776884,167.05,167.02,11.50677198]
[1730509246293,23.776884,167.05,167.03,5.51957198]
[1730509250093,23.776884,167.05,167.02,5.51957198]
[1730509253592,23.776884,167.05,167.02,11.50677198]
[1730509260079,5.9855,167.07,167.02,26.47497198]
[1730509260411,70.0,167.08,167.05,5.51957198]
[1730509261890,75.9846,167.1,167.05,11.50567198]
[1730509263280,23.776884,167.09,167.05,5.51957198]
[1730509264391,23.776884,167.09,167.06,5.51957198]
[1730509265890,23.776884,167.09,167.07,5.51957198]
[1730509266206,23.776884,167.09,167.06,11.50527198]
[1730509267620,70.0,167.12,167.08,5.51957198]
[1730509268611,70.0,167.12,167.09,5.51957198]
[1730509269491,70.0,167.12,167.1,5.9844]
[1730509271309,70.0,167.12,167.1,5.51957198]
[1730509273405,70.0,167.12,167.1,11.50387198]
[1730509278730,70.0,167.15,167.11,5.51957198]
[1730509278926,70.0,167.15,167.12,5.51957198]
[1730509282128,70.0,167.13,167.11,5.51957198]
[1730509282422,70.0,167.13,167.1,26.46507198]
[1730509282601,70.0,167.13,167.1,20.48067198]
[1730509282802,23.776884,167.12,167.09,5.51957198]
[1730509283017,70.0,167.11,167.07,5.51957198]
[1730509284722,70.0,167.11,167.07,11.50487198]
[1730509285430,23.776884,167.1,167.07,5.51957198]
[1730509285631,23.776884,167.08,167.05,5.51957198]
[1730509286314,23.776884,167.08,167.04,5.51957198]
[1730509286523,23.776884,167.08,167.04,11.50607198]
[1730509287915,23.776884,167.08,167.05,5.51957198]
[1730509289914,23.776884,167.08,167.04,5.51957198]
[1730509290111,23.776884,167.08,167.04,11.50597198]
[1730509291914,23.776884,167.08,167.03,14.9668]
[1730509291915,70.0,167.07,167.03,26.47327198]
[1730509292236,23.776884,167.06,167.03,14.9668]
[1730509293532,29.762784,167.06,167.02,11.50677198]
[1730509295131,70.0,167.05,167.01,5.9875]
[1730509295716,70.0,167.03,167.0,20.48927198]
[1730509295919,70.0,167.03,167.0,14.9697]
[1730509307528,70.0,167.03,167.0,5.51957198]
[1730509309345,81.50567198,167.06,167.01,20.9567]
[1730509309643,75.9861,167.06,167.02,5.51957198]
[1730509312228,75.9861,167.06,167.01,20.9567]
[1730509312229,70.0,167.04,166.99,5.51957198]
[1730509312425,75.51957198,167.04,166.99,5.51957198]
[1730509313342,5.9869,167.03,166.99,5.51957198]
[1730509313540,5.9869,167.03,166.98,26.47927198]
[1730509313758,5.9869,167.03,166.98,5.51957198]
[1730509313922,5.9869,167.03,166.98,11.50817198]
[1730509315039,5.9869,167.03,166.98,26.47997198]
[1730509319229,5.9869,167.03,166.99,5.51957198]
[1730509320043,5.9869,167.03,167.0,5.51957198]
[1730509320429,23.776884,167.05,167.01,5.51957198]
[1730509320629,29.763084,167.05,167.01,5.51957198]
[1730509321043,23.776884,167.05,167.02,5.51957198]
[1730509321628,29.763084,167.05,167.02,5.51957198]
[1730509324351,70.0,167.06,167.02,11.50667198]
[1730509324545,75.9852,167.08,167.04,5.51957198]
[1730509324927,70.0,167.08,167.02,20.9553]
[1730509325133,70.0,167.08,167.05,5.51957198]
[1730509325435,70.0,167.08,167.04,5.51957198]
[1730509326035,70.0,167.08,167.04,11.50607198]
[1730509326755,75.9852,167.08,167.04,11.50607198]
[1730509328336,75.9852,167.08,167.03,5.51957198]
[1730509328653,81.50477198,167.08,167.03,5.51957198]
[1730509330558,81.50477198,167.08,167.03,11.50617198]
[1730509331442,75.9852,167.08,167.04,5.51957198]
[1730509333464,75.9852,167.08,167.04,11.50607198]
[1730509335655,70.0,167.08,167.05,5.51957198]
[1730509336037,23.776884,167.09,167.06,5.51957198]
[1730509336240,70.0,167.1,167.07,5.51957198]
[1730509336846,81.50337198,167.12,167.07,5.51957198]
[1730509337038,23.776884,167.11,167.07,5.51957198]
[1730509337454,81.50337198,167.12,167.07,5.51957198]
[1730509337669,81.50337198,167.12,167.07,11.50477198]
[1730509337962,21.31467198,167.13,167.08,5.51957198]
[1730509338140,81.50277198,167.14,167.09,5.51957198]
[1730509338650,81.50277198,167.14,167.08,5.51957198]
[1730509339251,23.776884,167.13,167.08,11.50447198]
[1730509340468,29.760384,167.13,167.08,11.50447198]
[1730509340767,29.760384,167.13,167.08,26.46727198]
[1730509341163,70.0,167.12,167.08,26.46727198]
[1730509341561,70.0,167.12,167.08,20.9477]
[1730509345157,75.9837,167.12,167.08,20.9477]
[1730509345357,70.0,167.1,167.06,5.51957198]
[1730509345668,70.0,167.1,167.05,20.48457198]
[1730509345847,70.0,167.1,167.06,5.51957198]
[1730509346962,70.0,167.1,167.06,11.50507198]
[1730509347662,70.0,167.1,167.07,5.51957198]
[1730509350366,70.0,167.1,167.06,11.50507198]
[1730509351161,75.9846,167.1,167.06,5.51957198]
[1730509351358,81.50417198,167.1,167.05,14.9648]
[1730509352781,81.50417198,167.1,167.05,20.951]
[1730509353305,70.0,167.08,167.05,14.9648]
[1730509353490,70.0,167.08,167.04,5.51957198]
[1730509353781,70.0,167.08,167.03,11.50637198]
[1730509354782,5.9855,167.07,167.03,11.50637198]
[1730509357578,70.0,167.08,167.04,5.51957198]
[1730509357777,75.9852,167.08,167.04,5.51957198]
[1730509358289,70.0,167.06,167.02,5.51957198]
[1730509359091,70.0,167.04,167.02,5.51957198]
[1730509359390,70.0,167.04,167.01,5.51957198]
[1730509359790,75.9866,167.04,167.0,5.51957198]
[1730509359991,81.50617198,167.04,166.99,5.51957198]
[1730509360676,75.9866,167.04,166.99,5.51957198]
[1730509362287,75.9866,167.04,167.0,5.51957198]
[1730509366087,75.9866,167.04,166.99,5.51957198]
[1730509367489,75.9866,167.04,167.01,5.51957198]
[1730509367695,75.9866,167.04,167.02,5.51957198]
[1730509367987,70.0,167.05,167.02,5.51957198]
[1730509368191,70.0,167.05,166.97,14.9719]
[1730509368192,70.0,167.05,167.0,5.51957198]
[1730509368391,70.0,167.03,166.99,5.51957198]
[1730509368974,70.0,167.01,166.97,5.51957198]
[1730509369377,75.51957198,167.01,166.96,5.51957198]
[1730509369608,75.51957198,167.01,166.94,21.22048214]
[1730509369609,75.9883,166.99,166.95,5.51957198]
[1730509369900,75.9883,166.99,166.94,5.51957198]
[1730509370105,81.50787198,166.99,166.94,5.51957198]
[1730509370275,70.0,166.97,166.94,5.51957198]
[1730509370479,70.0,166.97,166.93,5.51957198]
[1730509371487,5.9894,166.96,166.93,5.51957198]
[1730509371682,70.0,166.95,166.91,5.51957198]
[1730509372200,70.0,166.95,166.9,20.49797198]
[1730509372201,75.51957198,166.95,166.9,20.49797198]
[1730509372596,5.9901,166.94,166.9,5.51957198]
[1730509374497,5.9901,166.94,166.91,5.51957198]
[1730509375697,70.0,166.95,166.92,5.51957198]
[1730509376004,5.9897,166.96,166.92,5.51957198]
[1730509376701,75.99,166.95,166.92,5.51957198]
[1730509377206,75.99,166.95,166.91,5.51957198]
[1730509379286,75.99,166.95,166.87,6.86450195]
[1730509379287,70.0,166.92,166.88,5.51957198]
[1730509379702,70.0,166.92,166.87,12.12916228]
[1730509380304,75.9909,166.92,166.88,5.51957198]
[1730509380503,5.51957198,166.94,166.87,6.6095903]
[1730509380504,5.9906,166.93,166.9,5.51957198]
[1730509380697,75.9902,166.94,166.91,5.51957198]
[1730509380910,5.9902,166.94,166.91,5.51957198]
[1730509381210,75.9902,166.94,166.91,5.51957198]
[1730509381397,75.9902,166.94,166.9,5.51957198]
[1730509382905,75.9902,166.94,166.89,11.51147198]
[1730509383110,75.9902,166.94,166.9,5.51957198]
[1730509383490,75.9902,166.94,166.89,5.51957198]
[1730509386910,75.9902,166.94,166.91,5.51957198]
[1730509387211,23.776884,166.95,166.91,5.51957198]
[1730509388399,5.9901,166.94,166.91,5.51957198]
[1730509391419,5.9899,166.95,166.91,5.51957198]
[1730509393306,5.9899,166.95,166.9,11.51117198]
[1730509394120,5.9899,166.95,166.91,5.51957198]
[1730509395122,11.50947198,166.95,166.9,5.51957198]
[1730509396318,70.0,166.96,166.92,5.51957198]
[1730509396629,70.0,166.96,166.93,5.51957198]
[1730509397210,81.50837198,166.98,166.93,5.51957198]
[1730509397411,75.9888,166.98,166.94,5.51957198]
[1730509397825,75.9888,166.98,166.95,5.51957198]
[1730509398008,70.0,166.98,166.95,5.51957198]
[1730509398201,70.0,166.98,166.94,5.51957198]
[1730509398530,70.0,166.98,166.94,11.50947198]
[1730509399418,75.9888,166.98,166.94,11.50947198]
[1730509401921,75.9888,166.98,166.93,5.51957198]
[1730509402525,70.0,166.98,166.93,5.51957198]
[1730509402715,70.0,166.98,166.94,5.51957198]
[1730509403123,5.9884,166.99,166.94,5.51957198]
[1730509403326,5.9884,166.99,166.95,5.51957198]
[1730509406338,5.9884,166.99,166.95,11.50927198]
[1730509413817,5.9877,167.01,166.97,5.51957198]
[1730509414022,70.0,167.02,166.97,5.51957198]
[1730509414322,75.9873,167.02,166.97,5.51957198]
[1730509415531,75.9873,167.02,166.97,11.50837198]
[1730509416631,75.9873,167.02,166.98,5.51957198]
[1730509416835,5.9869,167.03,166.99,5.51957198]